Workbook

Sheet 医疗收支2025jb02
A1: 职工基本医疗保险（含生育保险）基金收支表
N2: 季报02表
A3: 填报单位: | B3: 临河区医疗保障局 | C3: 第三季度 | G3: 2025年 | H3: 季 | N3: 单位:元
A4: 行 号 | B4: 项 目 | C4: 合 计 | D4: 统筹基金 | G4: 个人账户基金 | H4: 行号 | I4: 项 目 | J4: 合 计 | K4: 统筹基金 | N4: 个人账户基金
D5: 小计 | E5: 统账结合 | F5: 单建统筹 | K5: 小计 | L5: 统账结合 | M5: 单建统筹
A6: 1 | B6: 一、基本医疗保险费收入 | C6: =ROUND(C7+C9,2) -> 294,848,421.94 | D6: 230,236,839.29 | E6: 230,236,839.29 | F6: 0 | G6: 64,611,582.65 | H6: 30 | I6: 一、基本医疗保险待遇支出 | J6: =ROUND(J7+J16,2) -> 197,876,133.56 | K6: 119,831,099.74 | L6: 119,831,099.74 | M6: 0 | N6: 78,045,033.82
A7: 2 | B7: （一）单位缴费 | C7: =ROUND(D7+G7,2) -> 210,671,637.67 | D7: =ROUND(E7+F7,2) -> 210,671,637.67 | E7: 210,671,637.67 | H7: 31 | I7: （一）在职职工医疗保险待遇支出 | J7: =ROUND(J9+J10+J11+J12+J13+J14+J15,2) -> 156,408,533.35 | K7: 88,314,736.38 | L7: 88,314,736.38 | M7: 0 | N7: 68,093,796.97
A8: 3 | B8: 其中:生育保险收入 | C8: 0 | D8: 0 | H8: 32 | I8: 其中：个人账户负担近亲属医疗费用 | J8: =N8 -> 3,795,139.71 | K8: - | L8: - | M8: - | N8: 3,795,139.71
A9: 4 | B9: （二）个人缴费 | C9: 84,176,784.27 | D9: 19,565,201.62 | E9: 19,565,201.62 | G9: 64,611,582.65 | H9: 33 | I9: （1）住院支出 | J9: =ROUND(K9+N9,2) -> 37,794,567.29 | K9: =ROUND(L9+M9,2) -> 32,965,368.56 | L9: 32,965,368.56 | N9: 4,829,198.73
A10: 5 | B10: 二、利息收入 | C10: =ROUND(C11+C12,2) -> 159,115.68 | D10: 159,115.68 | E10: 159,115.68 | F10: 0 | G10: 0 | H10: 34 | I10: （2）门诊慢特病 | J10: 17,041,795.09 | K10: 16,193,039.88 | L10: 16,193,039.88 | N10: 848,755.21
A11: 6 | B11: （一）定期利息 | C11: =ROUND(D11+G11,2) -> 0 | D11: =ROUND(E11+F11,2) -> 0 | H11: 35 | I11: （3）普通门诊统筹 | J11: 48,193,023.94 | K11: 24,242,093.67 | L11: 24,242,093.67 | N11: 23,950,930.27
A12: 7 | B12: （二）活期利息 | C12: 159,115.68 | D12: 159,115.68 | E12: 159,115.68 | H12: 36 | I12: （4）定点药店医药费支出 | J12: 35,543,099.15 | K12: 65,923.18 | L12: 65,923.18 | N12: 35,477,175.97
A13: 8 | B13: 三、财政补贴收入 | C13: 0 | D13: 0 | H13: 37 | I13: （5）生育医疗费支出 | J13: 3,154,588.25 | K13: 3,123,628.57 | L13: 3,123,628.57 | N13: 30,959.68
A14: 9 | B14: 其中:对医保基金负担新冠病毒疫苗及接种费用的补助 | C14: 0 | D14: 0 | H14: 38 | I14: （6）生育津贴支出 | J14: 11,724,682.52 | K14: 11,724,682.52 | L14: 11,724,682.52
A15: 10 | B15: 四、其他收入 | C15: 16,931,159.59 | D15: 16,931,159.59 | E15: 16,931,159.59 | H15: 39 | I15: （7）其他 | J15: 2,956,777.11 | K15: 0 | N15: 2,956,777.11
A16: 11 | B16: 其中：滞纳金 | C16: 68,675.03 | D16: 68,675.03 | E16: 68,675.03 | H16: 40 | I16: (二)退休人员医疗保险待遇支出 | J16: =ROUND(J18+J19+J20+J21+J22,2) -> 41,467,600.21 | K16: 31,516,363.36 | L16: 31,516,363.36 | M16: 0 | N16: 9,951,236.85
A17: 12 | B17: 五、待转保险费收入 | C17: 0 | D17: 0 | H17: 41 | I17: 其中：个人账户负担近亲属医疗费用 | J17: =N17 -> 195,999.86 | K17: - | L17: - | M17: - | N17: 195,999.86
A18: 13 | B18: 六、待转利息收入 | C18: 0 | D18: 0 | H18: 42 | I18: （1）住院支出 | J18: =ROUND(K18+N18,2) -> 9,555,257.26 | K18: =ROUND(L18+M18,2) -> 9,225,296.88 | L18: 9,225,296.88 | N18: 329,960.38
A19: 14 | H19: 43 | I19: （2）门诊慢特病 | J19: 14,691,456.57 | K19: 14,149,532.74 | L19: 14,149,532.74 | N19: 541,923.83
A20: 15 | H20: 44 | I20: （3）普通门诊统筹 | J20: 11,512,704.24 | K20: 6,953,683.70 | L20: 6,953,683.70 | N20: 4,559,020.54
A21: 16 | H21: 45 | I21: （4）定点药店医药费 | J21: 5,708,182.14 | K21: 1,187,850.04 | L21: 1,187,850.04 | N21: 4,520,332.10
A22: 17 | H22: 46 | I22: （5）其他 | J22: 0 | K22: 0
A23: 18 | H23: 47 | I23: 二、其他支出 | J23: 41,429.57 | K23: 41,429.57 | L23: 41,429.57
A24: 19 | H24: 48 | I24: 其中：划转长期护理保险支出 | J24: 0 | K24: 0
A25: 20 | H25: 49 | I25: 代缴近亲属参加居民医保缴费 | J25: =N25 -> 0 | K25: - | L25: - | M25: -
A26: 21 | B26: 七、转移收入 | C26: =ROUND(D26+G26,2) -> 0 | D26: =ROUND(E26+F26,2) -> 0 | H26: 50 | I26: 三、转移支出 | J26: =ROUND(K26+N26,2) -> 1,891,889.67 | K26: =ROUND(L26+M26,2) -> 0 | N26: 1,891,889.67
A27: 22 | B27: 收入小计 | C27: =ROUND(C6+C10+C13+C15+C17+C18+C26,2) -> 311,938,697.21 | D27: 247,327,114.56 | E27: 247,327,114.56 | F27: 0 | G27: 64,611,582.65 | H27: 51 | I27: 支出小计 | J27: =ROUND(J6+J23+J26,2) -> 199,809,452.80 | K27: 119,872,529.31 | L27: 119,872,529.31 | M27: 0 | N27: 79,936,923.49
A28: 23 | B28: 八、上级补助收入 | C28: =ROUND(D28+G28,2) -> 200,883,714.53 | D28: =ROUND(E28+F28,2) -> 121,843,441.60 | E28: 121,843,441.60 | G28: 79,040,272.93 | H28: 52 | I28: 四、补助下级支出 | J28: =ROUND(K28+N28,2) -> 0 | K28: =ROUND(L28+M28,2) -> 0
A29: 24 | B29: 九、下级上解收入 | C29: 0 | D29: 0 | H29: 53 | I29: 五、上解上级支出 | J29: 279,390,449.53 | K29: 222,169,519.92 | L29: 222,169,519.92 | N29: 57,220,929.61
A30: 25 | B30: 收入合计 | C30: =ROUND(C27+C28+C29,2) -> 512,822,411.74 | D30: 369,170,556.16 | E30: 369,170,556.16 | F30: 0 | G30: 143,651,855.58 | H30: 54 | I30: 支出合计 | J30: =ROUND(J27+J28+J29,2) -> 479,199,902.33 | K30: 342,042,049.23 | L30: 342,042,049.23 | M30: 0 | N30: 137,157,853.10
A31: 26 | H31: 55 | I31: 收支结余 | J31: =ROUND(K31+N31,2) -> 33,622,509.41 | K31: =ROUND(L31+M31,2) -> 27,128,506.93 | L31: =ROUND(E30-L30,2) -> 27,128,506.93 | M31: 0 | N31: 6,494,002.48
A32: 27 | B32: 十、上年结余 | C32: =ROUND(D32+G32,2) -> 0 | D32: =ROUND(E32+F32,2) -> 0 | E32: 0 | F32: 0 | G32: 0 | H32: 56 | I32: 六、滚存结余 | J32: =ROUND(C32+J31,2) -> 33,622,509.41 | K32: 27,128,506.93 | L32: 27,128,506.93 | M32: 0 | N32: 6,494,002.48
A33: 28 | H33: 57 | I33: 其中:待转基金 | J33: =ROUND(K33+N33,2) -> 0 | K33: =ROUND(L33+M33,2) -> 0
A34: 29 | B34: 总 计 | C34: =ROUND(C30+C32,2) -> 512,822,411.74 | D34: 369,170,556.16 | E34: 369,170,556.16 | F34: 0 | G34: 143,651,855.58 | H34: 58 | I34: 总 计 | J34: =ROUND(J30+J32,2) -> 512,822,411.74 | K34: 369,170,556.16 | L34: 369,170,556.16 | M34: 0 | N34: 143,651,855.58
A35: 1.根据《关于印发<社会保险基金财务制度>的通知》财社〔2017〕144号，职工基本医保统筹基金待遇支出包括住院费用支出、门诊慢特病和普通门诊统筹费用支出，包含生育医疗费用支出和生育津贴支出；职工基本医保个人账户待遇支出包括门诊费用支出、住院费用支出、在定点零售药店发生的医药费用支出；
A36: 2.开展长期护理保险制度试点的统筹地区，划转长期护理保险基金的支出在其他收支表“划转长期护理保险支出”中列支。
A37: 3.纵向公式:1=2+4；2≧3；5=6+7；8≧9；10≧11；22=1+5+8+10+12+13+21；25=22+23+24；29=25+27；31=33+34+35+36+37+38+39；40=42+43+44+45+46；47≧48+49；51=30+47+50；54=51+52+53；55=25-54；56=27+55;56≧57；58=54+56。
A38: 4.横向公式:合计=小计+个人账户基金；小计=统账结合+单建统筹；

Sheet 其医收支2025jb05-1
A1: 其他医疗保障基金收支表
F2: 季报 05-1表
A3: 填报单位: | B3: 临河区医疗保障局 | C3: 2025年 | D3: 第三季度 | F3: 单位:元
A4: 行 号 | B4: 项 目 | C4: 金 额 | D4: 项 目 | F4: 金 额
A5: 1 | B5: 一、离休人员医疗保障基金 | D5: 25 | E5: 一、离休人员医疗保障基金
A6: 2 | B6: （一）离休人员医疗保险费收入 | D6: 26 | E6: （一）医疗费支出 | F6: =ROUND(F7+F8+F9,2) -> 342,609.08
A7: 3 | B7: （二）利息收入 | D7: 27 | E7: 住院支出 | F7: 342,609.08
A8: 4 | B8: （三）财政补贴收入 | C8: 750,000.00 | D8: 28 | E8: 门诊支出
A9: 5 | B9: （四）其他收入 | D9: 29 | E9: 其他
A10: 6 | D10: 30 | E10: （二）其他支出
A11: 7 | B11: 收入小计 | C11: =ROUND(C6+C7+C8+C9,2) -> 750,000.00 | D11: 31 | E11: 支出小计 | F11: =ROUND(F6+F10,2) -> 342,609.08
A12: 8 | B12: （五）上级补助收入 | D12: 32 | E12: （三）补助下级支出
A13: 9 | B13: （六）下级上解收入 | D13: 33 | E13: （四）上解上级支出
A14: 10 | B14: 收入合计 | C14: =ROUND(C11+C12+C13,2) -> 750,000.00 | D14: 34 | E14: 支出合计 | F14: =ROUND(F11+F12+F13,2) -> 342,609.08
A15: 11 | D15: 35 | E15: 收支结余 | F15: =ROUND(C14-F14,2) -> 407,390.92
A16: 12 | B16: （七）上年结余 | C16: 0 | D16: 36 | E16: （五）滚存结余 | F16: =ROUND(C16+F15,2) -> 407,390.92
A17: 13 | D17: 37
A18: 14 | B18: 二、伤残人员医疗保障基金 | D18: 38 | E18: 二、伤残人员医疗保障基金
A19: 15 | B19: （一）伤残人员医疗保险费收入 | D19: 39 | E19: （一）伤残人员医疗费支出 | F19: =ROUND(F20+F21,2) -> 165,754.81
A20: 16 | B20: （二）利息收入 | D20: 40 | E20: 其中:住院支出 | F20: 165,754.81
A21: 17 | B21: （三）财政补贴收入 | C21: 750,000.00 | D21: 41 | E21: 门诊支出
A22: 18 | B22: （四）其他收入 | D22: 42 | E22: （二）其他支出
A23: 19 | B23: 收入小计 | C23: =ROUND(C19+C20+C21+C22,2) -> 750,000.00 | D23: 43 | E23: 支出小计 | F23: =ROUND(F19+F22,2) -> 165,754.81
A24: 20 | B24: （五）上级补助收入 | D24: 44 | E24: （三）补助下级支出
A25: 21 | B25: （六）下级上解收入 | D25: 45 | E25: （四）上解上级支出
A26: 22 | B26: 收入合计 | C26: =ROUND(C23+C24+C25,2) -> 750,000.00 | D26: 46 | E26: 支出合计 | F26: =ROUND(F23+F24+F25,2) -> 165,754.81
A27: 23 | D27: 47 | E27: 收支结余 | F27: =ROUND(C26-F26,2) -> 584,245.19
A28: 24 | B28: （七）上年结余 | C28: 0 | D28: 48 | E28: （五）滚存结余 | F28: =ROUND(C28+F27,2) -> 584,245.19
A29: 注:纵向公式:7=2+3+4+5；10=7+8+9；19=15+16+17+18；22=19+20+21；31=26+30；34=31+32+33；35=10-34；36=12+35；43=39+42；
A30: 46=43+44+45；47=22-46；48=24+47。

Sheet 其医收支2025jb05-2
A1: 其他医疗保障基金收支表
F2: 季报05-2表
A3: 填报单位: | B3: 临河区医疗保障局 | C3: 2025年 | D3: 第三季度 | F3: 单位:元
A4: 行 号 | B4: 项 目 | C4: 金 额 | D4: 行 号 | E4: 项 目 | F4: 金 额
A5: 1 | B5: 三、公务员医疗补助基金 | D5: 26 | E5: 三、公务员医疗补助基金
A6: 2 | B6: （一）公务员医疗保险费收入 | C6: 32,775,074.68 | D6: 27 | E6: （一）公务员医疗补助支出 | F6: 2,839,490.72
A7: 3 | B7: （二）利息收入 | C7: 392,097.21 | D7: 28 | E7: 其中:住院支出 | F7: 1,188,331.19
A8: 4 | B8: （三）财政补贴收入 | D8: 29 | E8: 门诊支出 | F8: 1,651,159.53
A9: 5 | B9: （四）其他收入 | D9: 30 | E9: （二）其他支出 | F9: 16,862,484.56
A10: 6 | B10: 收入小计 | C10: =ROUND(C6+C7+C8+C9,2) -> 33,167,171.89 | D10: 31 | E10: 支出小计 | F10: =ROUND(F6+F9,2) -> 19,701,975.28
A11: 7 | B11: （五）上级补助收入 | D11: 32 | E11: （三）补助下级支出
A12: 8 | B12: （六 ）下级上解收入 | D12: 33 | E12: （四）上解上级支出
A13: 9 | B13: 收入合计 | C13: =ROUND(C10+C11+C12,2) -> 33,167,171.89 | D13: 34 | E13: 支出合计 | F13: =ROUND(F10+F11+F12,2) -> 19,701,975.28
A14: 10 | B14: （七）上年结余 | C14: 45,065,394.53 | D14: 35 | E14: 收支结余 | F14: =ROUND(C13-F13,2) -> 13,465,196.61
A15: 11 | D15: 36 | E15: （五）滚存结余 | F15: =ROUND(C14+F14,2) -> 58,530,591.14
A16: 12 | B16: 四、职工大额医疗费用补助 （含部分省份职工大病保险） | D16: 37 | E16: 四、职工大额医疗费用补助 （含部分省份职工大病保险）
A17: 13 | B17: （一）医疗保险费收入 | C17: 7,083,950.00 | D17: 38 | E17: （一）医疗保险费支出 | F17: =ROUND(F18+F19+F20,2) -> 1,878,179.05
A18: 14 | B18: 其中：单位缴费 | C18: 3,958,320.00 | D18: 39 | E18: 住院支出 | F18: 1,237,658.14
A19: 15 | B19: 个人缴费 | C19: 3,125,630.00 | D19: 40 | E19: 门诊支出 | F19: 640,520.91
A20: 16 | B20: 职工医保基金划转收入 | D20: 41 | E20: 其他
A21: 17 | B21: （二）利息收入 | D21: 42 | E21: （二）其他支出
A22: 18 | B22: （三）财政补贴收入 | D22: 43
A23: 19 | B23: （四）其他收入 | C23: 1,462.20 | D23: 44
A24: 20 | B24: 收入小计 | C24: =ROUND(C17+C21+C22+C23,2) -> 7,085,412.20 | D24: 45 | E24: 支出小计 | F24: =ROUND(F17+F21,2) -> 1,878,179.05
A25: 21 | B25: （五）上级补助收入 | C25: 2,639,706.47 | D25: 46 | E25: （三）补助下级支出
A26: 22 | B26: （六）下级上解收入 | D26: 47 | E26: （四）上解上级支出 | F26: 6,816,973.65
A27: 23 | B27: 收入合计 | C27: =ROUND(C24+C25+C26,2) -> 9,725,118.67 | D27: 48 | E27: 支出合计 | F27: =ROUND(F24+F25+F26,2) -> 8,695,152.70
A28: 24 | B28: （七）上年结余 | C28: 0 | D28: 49 | E28: 收支结余 | F28: =ROUND(C27-F27,2) -> 1,029,965.97
A29: 25 | D29: 50 | E29: （五）滚存结余 | F29: =ROUND(C28+F28,2) -> 1,029,965.97
A30: 注:纵向公式:6=2+3+4+5；9=6+7+8；27≧28+29；31=27+30；34=31+32+33；35=9-34；36=10+35；13≧14+15+16；20=13+17+18+19；
A31: 23=20+21+22；38=39+40+41;45=38+42；48=45+46+47；49=23-48；50=24+49。

Sheet 居民收支2025jb08
A1: 城乡居民基本医疗保险基金收支表
H2: 季报 08表
A3: 填报单位: | B3: 临河区医疗保障局 | E3: 2025年 | F3: 第三季度 | H3: 单位:元
A4: 行 号 | B4: 项 目 | D4: 合计 | E4: 行 号 | F4: 项 目 | H4: 合计
A5: 1 | B5: 一、基本医疗保险费收入 | D5: =ROUND(D6+D7+D8+D9+D10,2) -> 147,535,800.00 | E5: 28 | F5: 一、基本医疗保险待遇支出 | H5: =ROUND(H6+H7+H8+H9+H10,2) -> 112,888,908.30
A6: 2 | B6: 其中:个人缴费收入 | D6: 145,192,362.00 | E6: 29 | F6: 住院支出 | H6: 46,505,167.66
A7: 3 | B7: 单位对职工家属的资助收入 | E7: 30 | F7: 门诊慢特病 | H7: 34,265,665.62
A8: 4 | B8: 集体扶持收入 | E8: 31 | F8: 普通门诊统筹 | H8: 32,118,075.02
A9: 5 | B9: 城乡医疗救助资助收入 | D9: 2,343,438.00 | E9: 32 | F9: 定点药店医药费支出
A10: 6 | B10: 财政对困难人员代缴收入 | E10: 33 | F10: 其他
A11: 7 | B11: 二、利息收入 | D11: =ROUND(D12+D13,2) -> 126,481.21 | E11: 34
A12: 8 | B12: (一)定期利息 | E12: 35
A13: 9 | B13: (二)活期利息 | D13: 126,481.21 | E13: 36 | F13: 二、划转用于城乡居民大病保险支出 | H13: =ROUND(H14+H15,2) -> 0
A14: 10 | B14: 三、财政补贴收入 | D14: =ROUND(D15+D20+D21,2) -> 10,260,558.24 | E14: 37 | F14: （一）大病保险待遇支出
A15: 11 | B15: (一)按规定标准财政补助收入 | D15: =ROUND(D16+D17+D18+D19,2) -> 10,260,558.24 | E15: 38 | F15: （二）大病保险其他支出
A16: 12 | B16: 1.中央财政补助收入 | E16: 39 | F16: 三、其他支出
A17: 13 | B17: 2.省级财政补助收入 | E17: 40
A18: 14 | B18: 3.市级财政补助收入 | E18: 41
A19: 15 | B19: 4.县（区）级财政补助收入 | D19: 10,260,558.24 | E19: 42
A20: 16 | B20: （二）对医保基金负担新冠病毒疫苗及接种费用的补助 | E20: 43
A21: 17 | B21: （三）其他财政收入 | E21: 44
A22: 18 | B22: 四、其他收入 | E22: 45
A23: 19 | B23: 小 计 | D23: =ROUND(D5+D11+D14+D22,2) -> 157,922,839.45 | E23: 46 | F23: 小 计 | H23: =ROUND(H5+H13+H16,2) -> 112,888,908.30
A24: 20 | B24: 五、上级补助收入 | D24: 150,708,294.10 | E24: 47 | F24: 四、补助下级支出
A25: 21 | B25: 六、下级上解收入 | E25: 48 | F25: 五、上解上级支出 | H25: 178,237,397.26
A26: 22 | E26: 49
A27: 23 | B27: 收入合计 | D27: =ROUND(D23+D24+D25,2) -> 308,631,133.55 | E27: 50 | F27: 支出合计 | H27: =ROUND(H23+H24+H25,2) -> 291,126,305.56
A28: 24 | E28: 51 | F28: 收支结余 | H28: =ROUND(D27-H27,2) -> 17,504,827.99
A29: 25 | B29: 七、上年结余 | D29: 9,958,489.23 | E29: 52 | F29: 六、年末滚存结余 | H29: =ROUND((D27+D29)-H27,2) -> 27,463,317.22
A30: 26 | E30: 53
A31: 27 | B31: 总 计 | D31: =ROUND(D27+D29,2) -> 318,589,622.78 | E31: 54 | F31: 总 计 | H31: =ROUND(H27+H29,2) -> 318,589,622.78
A32: 补充资料:基本医疗保险费收入中划入门诊统筹的金额为: | E32: 元。
A34: 注:1.“个人缴费收入”项反映城乡居民按照规定缴费标准缴纳的保费收入；
A35: 2.“单位对职工家属的资助收入”项反映有条件的用人单位对职工家属参保缴费给予的资助；
A36: 3.“集体扶持收入”项反映乡村集体经济组织对农民参保缴费给予的资助；
A37: 4.“城乡医疗救助资助收入”项反映城乡医疗救助基金等资助参保对象缴纳的保费；
A38: 5.“财政补贴收入”项反映各级政府给予城乡居民基本医疗保险基金的补助，包括按照规定补助标准和参保居民人数给予的缴费补助。
A39: 6.“大病保险其他支出”项反映大病保险委托商保机构经办成本和利润支出项目。
A40: 勾稽关系:1.基本医疗保险费收入=个人缴费收入+单位对家属的资助收入+集体扶持收入+城乡医疗救助资助收入+其他；基本医疗保险待遇支出=住院支出+门诊慢特病+门诊统筹+定点药店医药费支出+其他；
A41: 纵向公式:1=2+3+4+5+6；7=8+9；10=11+16+17;11=12+13+14+15；19=1+7+10+18；23=19+20+21；27=23+25；27=54；28=29+30+31+32+33；36=37+38； 46=28+36+39; 50=46+47+48; 51=23-50;52=23+25-50;54=50+52。
